bitfinex-derivatives/quotes_BTCF0:USTF0_20260111
["timestamp","ask_amount","ask_price","bid_price","bid_amount"]
[1768124108474,0.18222018,90768.0,90753.0,0.09372]
[1768124108662,0.09172298,90767.0,90753.0,0.09372]
[1768124109057,0.09172298,90767.0,90752.0,0.00013135]
[1768124109058,0.0904972,90766.0,90758.0,0.011032]
[1768124109264,0.18222018,90766.0,90752.0,0.00013135]
[1768124109468,0.18222018,90765.0,90752.0,0.00013135]
[1768124109676,0.09172298,90764.0,90755.0,0.011032]
[1768124109976,0.09172298,90764.0,90752.0,0.01116435]
[1768124110667,0.09172298,90764.0,90754.0,0.011033]
[1768124113076,0.18222018,90764.0,90754.0,0.011033]
[1768124114367,0.18222018,90764.0,90756.0,0.011032]
[1768124114877,0.0904972,90764.0,90759.0,0.011032]
[1768124115270,0.09172298,90767.0,90759.0,0.011032]
[1768124115478,0.09172298,90767.0,90761.0,0.011032]
[1768124117079,0.09172298,90767.0,90758.0,0.011032]
[1768124117776,0.0904972,90769.0,90752.0,0.01116435]
[1768124118371,0.0904972,90769.0,90763.0,0.011032]
[1768124118676,0.09172298,90768.0,90763.0,0.011032]
[1768124118864,0.0904972,90767.0,90763.0,0.011032]
[1768124119791,0.0904972,90767.0,90760.0,0.011032]
[1768124119970,0.0904972,90767.0,90761.0,0.011032]
[1768124120383,0.0904972,90767.0,90753.0,0.011033]
[1768124121986,0.0904972,90767.0,90760.0,0.011032]
[1768124123676,0.0904972,90765.0,90754.0,0.011033]
[1768124123881,0.0904972,90765.0,90755.0,0.011032]
[1768124124084,0.09172298,90764.0,90755.0,0.011032]
[1768124124480,0.09172298,90764.0,90752.0,0.01116435]
[1768124124681,0.18222018,90763.0,90752.0,0.01116435]
[1768124125176,0.011031,90766.0,90752.0,0.01116435]
[1768124125177,0.18222018,90762.0,90752.0,0.01116435]
[1768124126088,0.18222018,90756.0,90736.0,0.09562498]
[1768124126290,0.09172298,90753.0,90733.0,0.09946191]
[1768124126476,0.1516803,90760.0,90732.0,0.09562498]
[1768124126477,0.18222018,90752.0,90737.0,0.09376]
[1768124126677,0.18222018,90751.0,90740.0,0.1516803]
[1768124126878,0.18222018,90751.0,90737.0,0.09376]
[1768124127187,5.2e-07,90750.0,90737.0,0.09376]
[1768124127580,5.2e-07,90750.0,90740.0,0.1516803]
[1768124127990,5.2e-07,90750.0,90737.0,0.09376]
[1768124128184,5.2e-07,90750.0,90746.0,0.011034]
[1768124128386,5.2e-07,90750.0,90743.0,0.011034]
[1768124129087,5.2e-07,90750.0,90740.0,0.1516803]
[1768124129283,5.2e-07,90750.0,90739.0,0.011034]
[1768124129488,5.2e-07,90750.0,90741.0,0.011034]
[1768124130192,5.2e-07,90750.0,90743.0,0.011034]
[1768124130680,5.2e-07,90750.0,90746.0,0.011034]
[1768124130885,0.18222018,90756.0,90746.0,0.011034]
[1768124131997,0.18222018,90756.0,90748.0,0.011033]
[1768124132197,0.18222018,90756.0,90745.0,0.011034]
[1768124132492,0.18222018,90756.0,90747.0,0.011033]
[1768124134494,0.19081425,90748.0,90738.0,0.01345858]
[1768124134703,0.09719048,90747.0,90738.0,0.01345858]
[1768124135595,0.09719048,90747.0,90740.0,0.011034]
[1768124136697,0.09362377,90748.0,90738.0,0.00242458]
[1768124137196,0.09362377,90748.0,90741.0,0.011034]
[1768124137893,0.09362377,90748.0,90743.0,0.011034]
[1768124145006,0.09719048,90751.0,90738.0,0.00242458]
[1768124145007,0.09719048,90751.0,90741.0,0.011034]
[1768124145307,0.09719048,90751.0,90743.0,0.011034]
[1768124145806,0.09719048,90751.0,90741.0,0.011034]
[1768124146308,0.19081425,90751.0,90741.0,0.011034]
[1768124147511,0.19081425,90751.0,90742.0,0.011034]
[1768124147712,0.19081425,90751.0,90738.0,0.00242458]
[1768124148010,0.09719048,90755.0,90747.0,0.011033]
[1768124148508,0.09719048,90755.0,90745.0,0.011034]
[1768124149308,0.09719048,90755.0,90746.0,0.011033]
[1768124152721,0.09719048,90755.0,90745.0,0.011034]
[1768124152722,0.09719048,90754.0,90745.0,0.011034]
[1768124153418,0.09719048,90754.0,90747.0,0.011033]
[1768124155018,0.09719048,90750.0,90738.0,0.00242458]
[1768124155221,0.19081425,90750.0,90738.0,0.00242458]
[1768124155424,0.09719048,90748.0,90738.0,0.00242458]
[1768124160220,0.09719048,90748.0,90741.0,0.011034]
[1768124160728,0.09719048,90748.0,90743.0,0.011034]
[1768124161023,0.09719048,90748.0,90740.0,0.011034]
[1768124161224,0.09719048,90748.0,90742.0,0.011034]
[1768124161828,0.09719048,90751.0,90738.0,0.00242458]
[1768124163229,0.09719048,90751.0,90744.0,0.011034]
[1768124164421,0.06719575,90751.0,90746.0,0.011034]
[1768124164725,0.011032,90760.0,90744.0,0.011034]
[1768124164933,0.09700825,90759.0,90744.0,0.011034]
[1768124165117,0.09700825,90759.0,90739.0,0.011034]
[1768124165429,0.09700825,90759.0,90741.0,0.011034]
[1768124166317,0.09700825,90759.0,90750.0,0.011033]
[1768124166624,0.09098238,90758.0,90750.0,0.011033]
[1768124167327,0.09098238,90758.0,90748.0,0.011033]
[1768124167825,0.09700825,90759.0,90740.0,0.18680329]
[1768124168033,0.18929851,90759.0,90750.0,0.011033]
[1768124168332,0.18929851,90759.0,90752.0,0.011033]
[1768124169036,0.09229026,90763.0,90753.0,0.011033]
[1768124169726,0.09926876,90765.0,90757.0,0.011032]
[1768124170222,7.6e-07,90765.0,90746.0,0.18680329]
[1768124170418,7.6e-07,90765.0,90744.0,0.09376]
[1768124170419,7.6e-07,90765.0,90762.0,0.011032]
[1768124170725,0.09229026,90768.0,90750.0,0.011033]
[1768124171531,0.09213164,90769.0,90750.0,0.10210435]
[1768124172034,0.09229026,90779.0,90768.0,0.011031]
[1768124172332,0.09229026,90779.0,90760.0,0.18483135]
[1768124172532,0.1844219,90782.0,90761.0,0.10210335]
[1768124172827,0.09229026,90781.0,90761.0,0.19783529]
[1768124173531,0.09229026,90781.0,90761.0,0.18680329]
[1768124173720,0.09213164,90775.0,90753.0,0.09107135]
[1768124173916,0.09213164,90771.0,90758.0,0.011032]
[1768124174129,0.09229026,90769.0,90759.0,0.09376]
[1768124174632,0.1844219,90769.0,90756.0,0.011032]
[1768124174831,0.09229026,90766.0,90757.0,0.09376]
[1768124176631,0.09213164,90767.0,90758.0,0.011032]
[1768124179532,0.1844219,90767.0,90758.0,0.011032]
[1768124180832,0.09229026,90766.0,90757.0,0.09376]
[1768124181333,0.09213164,90767.0,90757.0,0.09376]
[1768124183029,0.09213164,90767.0,90757.0,0.104792]
[1768124184237,0.011031,90766.0,90757.0,0.09376]
[1768124184539,0.1844219,90767.0,90757.0,0.09376]
[1768124185439,0.1844219,90767.0,90748.0,0.09107135]
[1768124185440,0.1954529,90767.0,90748.0,0.09107135]
[1768124185640,0.1954529,90767.0,90752.0,0.011033]
[1768124185939,0.1844219,90767.0,90754.0,0.011033]
[1768124187542,0.09229026,90766.0,90753.0,0.09376]
[1768124187744,0.1954529,90764.0,90750.0,0.011033]
[1768124188044,0.1954529,90764.0,90746.0,0.95428]
[1768124188045,0.09229026,90762.0,90751.0,0.09376]
[1768124188339,0.09229026,90762.0,90751.0,0.104793]
[1768124188843,0.09213164,90763.0,90753.0,0.011033]
[1768124189729,0.09213164,90763.0,90755.0,0.011032]
[1768124189931,0.09229026,90765.0,90759.0,0.011032]
[1768124190137,0.09229026,90765.0,90756.0,0.011032]
[1768124190834,0.09229026,90765.0,90758.0,0.011032]
[1768124191141,0.09213164,90768.0,90761.0,0.011032]
[1768124191339,0.09213164,90768.0,90758.0,0.011032]
[1768124191642,0.09213164,90768.0,90760.0,0.011032]
[1768124191940,0.09229026,90774.0,90760.0,0.011032]
[1768124192142,0.09229026,90772.0,90760.0,0.011032]
[1768124192542,0.09229026,90771.0,90762.0,0.011032]
[1768124193728,0.09229026,90771.0,90759.0,0.011032]
[1768124194139,0.09229026,90771.0,90760.0,0.011032]
[1768124194340,0.09229026,90771.0,90761.0,0.011032]
[1768124194845,0.09225882,90770.0,90761.0,0.011032]
[1768124195641,0.09225882,90770.0,90758.0,0.011032]
[1768124196747,0.09225882,90770.0,90760.0,0.15175911]
[1768124198937,0.09225882,90770.0,90760.0,0.16279111]
[1768124200849,0.09225882,90770.0,90760.0,0.011032]
[1768124201149,0.09225882,90770.0,90760.0,0.16279111]
[1768124203045,0.09225882,90770.0,90762.0,0.011032]
[1768124203544,0.09225882,90770.0,90760.0,0.16279111]
[1768124203744,0.09225882,90770.0,90762.0,0.011032]
[1768124208059,0.09225882,90770.0,90760.0,0.16279111]
[1768124208246,0.09225882,90770.0,90760.0,0.011032]
[1768124208446,0.09225882,90770.0,90760.0,0.16279111]
[1768124209359,0.09225882,90770.0,90761.0,0.011032]
[1768124215569,0.09225882,90770.0,90760.0,0.15175911]
[1768124221473,0.09225882,90770.0,90751.0,0.18565632]
[1768124221675,0.09225882,90770.0,90760.0,0.15175911]
[1768124221973,0.09225882,90770.0,90751.0,0.18565632]
[1768124222170,0.09225882,90770.0,90760.0,0.15175911]
[1768124222673,0.09225882,90770.0,90758.0,0.011032]
[1768124222874,0.09225882,90770.0,90760.0,0.15175911]
[1768124224680,0.09225882,90770.0,90760.0,0.16279111]
[1768124226371,0.09225882,90770.0,90760.0,0.15175911]
[1768124228076,0.09225882,90770.0,90760.0,0.16279111]
[1768124228278,0.09836407,90771.0,90760.0,0.16279111]
[1768124229779,0.09836407,90771.0,90760.0,0.15175911]
[1768124230470,0.011031,90770.0,90760.0,0.15175911]
[1768124230866,0.09836407,90771.0,90760.0,0.15175911]
[1768124232785,0.09836407,90771.0,90759.0,0.011032]
[1768124233081,0.09836407,90771.0,90760.0,0.15175911]
[1768124235684,0.10378752,90773.0,90760.0,0.15175911]
[1768124242089,0.011031,90772.0,90760.0,0.15175911]
[1768124243388,0.09275752,90773.0,90760.0,0.15175911]
[1768124244390,0.01103,90772.0,90760.0,0.15175911]
[1768124248293,0.18651752,90775.0,90756.0,0.09012262]
[1768124248595,0.011031,90771.0,90756.0,0.09012262]
[1768124249393,0.011031,90771.0,90756.0,0.10115462]
[1768124250997,0.01103,90773.0,90756.0,0.10115462]
[1768124251294,0.01103,90773.0,90757.0,0.011032]
[1768124256090,0.011031,90771.0,90756.0,0.09012262]
[1768124257493,0.011031,90771.0,90756.0,0.10115462]
[1768124260610,0.011031,90771.0,90756.0,0.2002461]
[1768124261902,0.011031,90771.0,90757.0,0.097638]
[1768124262109,0.011031,90771.0,90757.0,0.10867]
[1768124262309,0.01103,90773.0,90757.0,0.10867]
[1768124266222,0.09376,90775.0,90757.0,0.10867]
[1768124266223,0.011031,90772.0,90757.0,0.10867]
[1768124266515,0.011031,90772.0,90757.0,0.20776148]
[1768124267316,0.011031,90771.0,90758.0,0.097638]
[1768124267818,0.011031,90771.0,90757.0,0.09909148]
[1768124267819,0.011031,90771.0,90759.0,0.19672948]
[1768124268819,0.011031,90771.0,90759.0,0.09909148]
[1768124269921,0.09376,90775.0,90759.0,0.09909148]
[1768124271923,0.09376,90775.0,90759.0,0.19672948]
[1768124272112,0.01103,90772.0,90759.0,0.20776148]
[1768124272916,0.01103,90774.0,90759.0,0.20776148]
[1768124274324,0.01103,90772.0,90759.0,0.19672948]
[1768124276228,0.011031,90770.0,90759.0,0.19672948]
[1768124279125,0.011031,90769.0,90759.0,0.19672948]
[1768124279331,0.01103,90774.0,90759.0,0.19672948]
[1768124279730,0.011031,90770.0,90759.0,0.19672948]
[1768124282123,0.011031,90769.0,90759.0,0.19672948]
[1768124284036,0.011031,90769.0,90760.0,0.09929782]
[1768124291346,0.011031,90771.0,90760.0,0.09929782]
[1768124292743,0.011031,90770.0,90760.0,0.09929782]
[1768124292943,0.011031,90769.0,90760.0,0.09929782]
[1768124294744,0.011031,90768.0,90760.0,0.09929782]
[1768124299353,0.011031,90768.0,90760.0,0.19242428]
[1768124300150,0.09376,90775.0,90761.0,0.09638287]
[1768124302352,0.011031,90769.0,90761.0,0.09638287]
[1768124304655,0.011031,90771.0,90761.0,0.09638287]
[1768124305155,0.011031,90771.0,90762.0,0.09638287]
[1768124305546,0.011031,90771.0,90763.0,0.09638287]
[1768124307456,0.011031,90771.0,90762.0,0.09312646]
[1768124307659,0.011031,90769.0,90749.0,0.09376]
[1768124307957,0.09376,90775.0,90749.0,0.09376]
[1768124308154,0.011031,90768.0,90750.0,0.011033]
[1768124308348,0.09376,90775.0,90750.0,0.011033]
[1768124308960,0.011031,90769.0,90751.0,0.011033]
[1768124309462,0.011031,90767.0,90751.0,0.011033]
[1768124309759,0.011031,90767.0,90756.0,0.18950933]
[1768124309962,0.011031,90767.0,90758.0,0.09638287]
[1768124311563,0.011031,90767.0,90759.0,0.09638287]
[1768124315457,0.011031,90769.0,90759.0,0.09638287]
[1768124316463,0.00242378,90768.0,90759.0,0.09638287]
[1768124317468,0.011031,90767.0,90759.0,0.09638287]
[1768124317767,0.00550876,90765.0,90759.0,0.09638287]
[1768124320874,0.011031,90764.0,90759.0,0.18732171]
[1768124321678,0.011031,90764.0,90760.0,0.09093884]
[1768124322279,0.00550876,90765.0,90760.0,0.09093884]
[1768124324080,0.011031,90764.0,90760.0,0.09093884]
[1768124325879,0.00550876,90765.0,90760.0,0.09093884]
[1768124326076,0.011032,90763.0,90760.0,0.09093884]
[1768124326784,0.00550876,90765.0,90760.0,0.09093884]
[1768124327577,0.011031,90764.0,90760.0,0.09093884]
[1768124328587,0.011031,90764.0,90759.0,0.09638287]
[1768124328786,0.011031,90764.0,90759.0,0.18732171]
[1768124329779,0.00242378,90768.0,90760.0,0.09093884]
[1768124331185,0.011031,90767.0,90760.0,0.09093884]
[1768124331877,0.00242378,90768.0,90760.0,0.09093884]
[1768124332488,0.00242378,90768.0,90759.0,0.09638287]
[1768124333188,0.011031,90767.0,90759.0,0.09638287]
[1768124333386,0.00242378,90768.0,90759.0,0.09638287]
[1768124334187,0.011031,90767.0,90759.0,0.09638287]
[1768124336489,0.09376,90775.0,90759.0,0.09638287]
[1768124336986,0.011031,90768.0,90759.0,0.09638287]
[1768124337187,0.09376,90775.0,90759.0,0.09638287]
[1768124337489,0.011031,90769.0,90759.0,0.09638287]
[1768124337788,0.011031,90766.0,90759.0,0.09638287]
[1768124339890,0.01103,90774.0,90759.0,0.09638287]
[1768124340088,0.15177798,90770.0,90759.0,0.09638287]
[1768124341180,0.011032,90763.0,90759.0,8.7e-07]
[1768124341386,0.011032,90763.0,90755.0,0.09093884]
[1768124342993,0.011031,90764.0,90755.0,0.09093884]
[1768124343295,0.011031,90764.0,90756.0,0.09783189]
[1768124343494,0.011031,90764.0,90756.0,0.18877073]
[1768124344986,0.011031,90764.0,90757.0,0.09003073]
[1768124347802,0.01103,90773.0,90757.0,0.09003073]
[1768124348001,0.15177798,90770.0,90757.0,0.09003073]
[1768124348296,0.15177798,90770.0,90757.0,0.09756088]
[1768124348501,0.011032,90763.0,90758.0,0.19538097]
[1768124350405,0.011032,90763.0,90759.0,0.09756088]
[1768124354223,0.011031,90766.0,90759.0,0.09756088]
[1768124354425,0.15177798,90770.0,90759.0,0.09756088]
[1768124354624,0.011032,90763.0,90759.0,0.09756088]
[1768124358521,0.18557921,90764.0,90744.0,0.09756088]
[1768124358725,0.09376,90763.0,90739.0,0.09782009]
[1768124358927,0.011032,90758.0,90747.0,0.09782009]
[1768124359222,0.011032,90758.0,90749.0,0.09782009]
[1768124363129,0.09376,90763.0,90749.0,0.09782009]
[1768124363330,0.15177798,90760.0,90749.0,0.09782009]
[1768124363520,0.011031,90765.0,90752.0,0.09782009]
[1768124363720,0.09376,90764.0,90754.0,0.09782009]
[1768124364122,0.09376,90764.0,90755.0,0.09782009]
[1768124365428,0.011032,90763.0,90755.0,0.09782009]
[1768124367734,0.011032,90763.0,90755.0,0.05282009]
[1768124368726,0.011032,90761.0,90755.0,0.05282009]
[1768124369434,0.011032,90761.0,90754.0,0.09756088]
[1768124372333,0.011032,90759.0,90753.0,0.08685861]
[1768124372633,0.011032,90762.0,90753.0,0.08685861]
[1768124373034,0.09376,90764.0,90753.0,0.08685861]
[1768124373234,0.011032,90757.0,90750.0,0.08505972]
[1768124374638,0.16280998,90760.0,90750.0,0.08505972]
[1768124375136,0.011032,90760.0,90750.0,0.08505972]
[1768124375335,0.16280998,90760.0,90750.0,0.08505972]
[1768124375532,0.011032,90760.0,90750.0,0.08505972]
[1768124378041,0.16280998,90760.0,90750.0,0.08505972]
[1768124379040,0.011032,90763.0,90750.0,0.08505972]
[1768124379638,0.011032,90761.0,90750.0,0.08505972]
[1768124379835,0.09376,90764.0,90750.0,0.08505972]
[1768124381341,0.011032,90759.0,90750.0,0.08505972]
[1768124382340,0.09926876,90765.0,90750.0,0.08505972]
[1768124382536,0.011032,90759.0,90750.0,0.08505972]
[1768124384837,0.011032,90757.0,90750.0,0.08505972]
[1768124392943,0.09376,90764.0,90750.0,0.08505972]
[1768124393446,0.011032,90759.0,90750.0,0.08505972]
[1768124394146,0.00550876,90765.0,90750.0,0.08505972]
[1768124394450,0.011032,90757.0,90750.0,0.08505972]
[1768124397349,0.011032,90759.0,90750.0,0.08505972]
[1768124398151,0.011032,90761.0,90750.0,0.08505972]
[1768124400756,0.09376,90764.0,90751.0,0.08244611]
[1768124400952,0.011032,90761.0,90751.0,0.08244611]
[1768124402455,0.011032,90760.0,90751.0,0.08244611]
[1768124404252,0.011032,90763.0,90751.0,0.08244611]
[1768124404455,0.011032,90761.0,90751.0,0.08244611]
[1768124406154,0.104792,90764.0,90751.0,0.08244611]
[1768124406348,0.011032,90762.0,90751.0,0.08244611]
[1768124406754,0.09376,90764.0,90751.0,0.08244611]
[1768124408154,0.011032,90761.0,90751.0,0.08244611]
[1768124409154,0.09376,90764.0,90751.0,0.08244611]
[1768124409348,0.011032,90761.0,90751.0,0.08244611]
[1768124409857,0.011032,90759.0,90751.0,0.08244611]
[1768124413457,0.09376,90764.0,90751.0,0.08244611]
[1768124414662,0.011032,90761.0,90751.0,0.08244611]
[1768124415960,0.09376,90764.0,90751.0,0.08244611]
[1768124416165,0.011032,90760.0,90751.0,0.08244611]
[1768124416362,0.09376,90764.0,90751.0,0.08244611]
[1768124416560,0.011032,90759.0,90751.0,0.08244611]
[1768124417356,0.09376,90764.0,90751.0,0.08244611]
[1768124417866,0.011032,90756.0,90751.0,0.08244611]
[1768124418165,0.011032,90756.0,90750.0,0.09025248]
[1768124419565,0.011033,90755.0,90750.0,0.09025248]
[1768124420758,0.011032,90757.0,90750.0,0.09025248]
[1768124421663,0.011032,90757.0,90748.0,0.08043145]
[1768124421863,0.011032,90757.0,90745.0,0.18640137]
[1768124422263,0.011032,90757.0,90746.0,0.07958449]
[1768124422953,0.011033,90754.0,90746.0,0.07958449]
[1768124423863,0.011032,90756.0,90746.0,0.07958449]
[1768124424564,0.011032,90763.0,90746.0,0.07958449]
[1768124426862,0.011033,90753.0,90746.0,0.07958449]
[1768124427668,0.011033,90755.0,90746.0,0.07958449]
[1768124428868,0.011032,90757.0,90746.0,0.07958449]
[1768124434870,0.011032,90756.0,90746.0,0.07958449]
[1768124436976,0.011032,90756.0,90747.0,0.0781016]
[1768124437375,0.011032,90758.0,90747.0,0.0781016]
[1768124437670,0.011032,90758.0,90748.0,0.0781016]
[1768124440278,0.011032,90758.0,90749.0,0.07821578]
[1768124440880,0.09376,90763.0,90749.0,0.07821578]
[1768124441582,0.011032,90758.0,90749.0,0.07821578]
[1768124441780,0.011032,90759.0,90749.0,0.07821578]
[1768124442283,0.011032,90759.0,90750.0,0.07754999]
[1768124443482,0.011032,90761.0,90750.0,0.07754999]
[1768124443686,0.011032,90761.0,90750.0,0.08858299]
[1768124444888,0.011032,90762.0,90751.0,0.08832905]
[1768124445181,0.09376,90763.0,90752.0,0.07729605]
[1768124445383,0.104792,90763.0,90753.0,0.07729605]
[1768124445574,0.104792,90763.0,90753.0,0.08611041]
[1768124445770,0.011032,90761.0,90753.0,0.08611041]
[1768124446376,0.104792,90763.0,90753.0,0.08611041]
[1768124447084,0.011032,90763.0,90753.0,0.08611041]
[1768124447791,0.011032,90761.0,90753.0,0.08611041]
[1768124448888,0.011032,90760.0,90753.0,0.08611041]
[1768124453183,0.09926876,90765.0,90753.0,0.08611041]
[1768124453491,0.011032,90760.0,90753.0,0.08611041]
[1768124454488,0.011032,90760.0,90751.0,0.00245613]
[1768124457592,0.011032,90759.0,90751.0,0.00245613]
[1768124458396,0.011032,90761.0,90751.0,0.00245613]
[1768124459694,0.011032,90760.0,90746.0,0.011034]
[1768124460189,0.16283641,90760.0,90746.0,0.011034]
[1768124460391,0.15180441,90760.0,90744.0,0.00217402]
[1768124460591,0.011032,90757.0,90744.0,0.01320802]
[1768124460794,0.011032,90757.0,90744.0,0.00217402]
[1768124461097,0.011033,90754.0,90744.0,0.00217402]
[1768124462897,0.011033,90753.0,90744.0,0.00217402]
[1768124463498,0.011033,90753.0,90740.0,0.01687264]
[1768124465200,0.09647903,90758.0,90740.0,0.00583864]
[1768124465390,0.011033,90755.0,90741.0,0.011034]
[1768124465999,0.011033,90753.0,90741.0,0.011034]
[1768124466400,0.011033,90753.0,90740.0,0.00583864]
[1768124467901,0.011033,90752.0,90739.0,0.10103722]
[1768124470002,0.19408847,90758.0,90739.0,0.10103722]
[1768124470299,0.15180441,90750.0,90737.0,0.09376]
[1768124471001,0.15180441,90750.0,90733.0,0.09146124]
[1768124471197,0.011034,90745.0,90733.0,0.09146124]
[1768124471402,0.24218563,90750.0,90729.0,0.09926457]
[1768124471697,0.09038122,90749.0,90729.0,0.09926457]
[1768124472102,0.011034,90744.0,90729.0,0.01654057]
[1768124473405,0.011034,90744.0,90731.0,0.011035]
[1768124473702,0.011034,90746.0,90729.0,0.00550457]
[1768124474590,0.011034,90745.0,90729.0,0.01654057]
[1768124474899,0.011034,90744.0,90729.0,0.01654057]
[1768124475297,0.011034,90744.0,90731.0,0.011035]
[1768124476803,0.15180441,90741.0,90729.0,0.00550457]
[1768124477002,0.09038122,90747.0,90728.0,0.10249724]
[1768124477605,0.09038122,90746.0,90728.0,0.10249724]
[1768124478307,0.011034,90742.0,90728.0,0.10249724]
[1768124479006,0.15180441,90740.0,90728.0,0.10249724]
[1768124479204,0.15180441,90740.0,90725.0,0.01654719]
[1768124479504,0.15180441,90740.0,90727.0,0.011036]
[1768124480104,0.011034,90741.0,90727.0,0.011036]
[1768124480608,0.011035,90735.0,90726.0,0.0938]
[1768124480907,0.011035,90738.0,90726.0,0.03071199]
[1768124481408,0.15180441,90740.0,90729.0,0.011036]
[1768124482209,0.15180441,90740.0,90730.0,0.011035]
[1768124483005,0.15180441,90740.0,90731.0,0.011035]
[1768124484910,0.15180441,90740.0,90725.0,0.00551119]
[1768124484911,0.15180441,90740.0,90728.0,0.011036]
[1768124485105,0.15180441,90740.0,90729.0,0.011036]
[1768124486112,0.24218563,90740.0,90729.0,0.011036]
[1768124487207,0.09038122,90739.0,90729.0,0.011036]
[1768124487607,0.09038122,90739.0,90730.0,0.011035]
[1768124488007,0.09038122,90739.0,90731.0,0.011035]
[1768124489514,0.09038122,90739.0,90725.0,0.00551119]
[1768124489715,0.09038122,90739.0,90729.0,0.011036]
[1768124491009,0.09038122,90739.0,90730.0,0.011035]
[1768124492011,0.09038122,90739.0,90725.0,0.00551119]
[1768124492214,0.09038122,90738.0,90725.0,0.00551119]
[1768124492708,0.09038122,90737.0,90727.0,0.011036]
[1768124492905,0.09038122,90737.0,90725.0,0.01654719]
[1768124493909,0.25128538,90735.0,90725.0,0.00551119]
[1768124495012,0.09948097,90732.0,90720.0,0.011037]
[1768124495312,0.15180441,90730.0,90720.0,0.011037]
[1768124495910,0.15180441,90730.0,90715.0,0.0938]
[1768124496917,0.25128538,90730.0,90718.0,0.011037]
[1768124497117,0.25128538,90730.0,90720.0,0.011037]
[1768124497620,0.25128538,90730.0,90721.0,0.011037]
[1768124497817,0.25128538,90730.0,90722.0,0.011036]
[1768124498723,0.15180441,90730.0,90722.0,0.011036]
[1768124499721,0.35094069,90732.0,90722.0,0.011036]
[1768124501819,0.09948097,90731.0,90720.0,0.011037]
[1768124503830,0.09948097,90731.0,90721.0,0.011037]
[1768124506928,0.09948097,90731.0,90719.0,0.011037]
[1768124507732,0.09948097,90731.0,90720.0,0.011037]
[1768124510522,0.19913628,90731.0,90720.0,0.011037]
[1768124510925,0.09948097,90730.0,90720.0,0.011037]
[1768124515342,0.09948097,90729.0,90721.0,0.011037]
[1768124517036,0.09948097,90729.0,90712.0,0.0938]
[1768124518133,0.09948097,90729.0,90720.0,0.011037]
[1768124518940,0.09948097,90728.0,90712.0,0.0938]
[1768124520137,0.09948097,90728.0,90720.0,0.011037]
[1768124520342,0.09948097,90728.0,90717.0,0.011037]
[1768124520642,0.09948097,90728.0,90712.0,0.0938]
[1768124520643,0.09948097,90728.0,90718.0,0.011037]
[1768124520842,0.19913628,90728.0,90718.0,0.011037]
[1768124521241,0.09948097,90727.0,90718.0,0.011037]
[1768124521446,0.19913628,90726.0,90703.0,0.011039]
[1768124521643,0.25676428,90740.0,90699.0,0.011039]
[1768124521644,0.19913628,90723.0,90705.0,0.09931241]
[1768124521836,0.09965531,90717.0,90705.0,0.09931241]
[1768124522037,0.09948097,90715.0,90705.0,0.09931241]
[1768124522340,0.09948097,90714.0,90705.0,0.09931241]
[1768124522539,0.09948097,90714.0,90711.0,0.011038]
[1768124522540,2.8e-07,90714.0,90711.0,0.011038]
[1768124522742,0.011036,90724.0,90710.0,0.011038]
[1768124523140,0.011036,90726.0,90710.0,0.011038]
[1768124523746,0.011036,90726.0,90713.0,0.011038]
[1768124524248,0.011036,90726.0,90711.0,0.011038]
[1768124524647,0.19554049,90724.0,90711.0,0.011038]
[1768124524946,0.09765886,90720.0,90705.0,0.09931241]
[1768124525244,0.09765886,90720.0,90713.0,0.011038]
[1768124525947,0.09765886,90720.0,90706.0,0.011038]
[1768124526648,0.09765886,90720.0,90715.0,0.011037]
[1768124526849,0.09765886,90720.0,90713.0,0.011038]
[1768124527540,0.09765886,90720.0,90715.0,0.011037]
[1768124527945,0.09788163,90721.0,90717.0,0.011037]
[1768124528157,0.055126,90819.0,90729.0,0.011036]
[1768124528158,0.01654398,90745.0,90729.0,0.011036]
[1768124528343,0.01654398,90745.0,90705.0,0.09931241]
[1768124528344,0.00550998,90745.0,90735.0,0.011035]
[1768124528649,0.0938,90747.0,90734.0,0.011035]
[1768124529248,0.0938,90747.0,90731.0,0.011035]
[1768124529946,0.09480541,90746.0,90731.0,0.011035]
[1768124530142,0.09480541,90745.0,90731.0,0.011035]
[1768124534162,0.09480541,90752.0,90728.0,0.09499298]
[1768124534348,0.011031,90766.0,90738.0,0.09499298]
[1768124534349,0.09480541,90755.0,90738.0,0.09499298]
[1768124534547,0.09480541,90755.0,90740.0,0.011034]
[1768124534948,0.09480541,90754.0,90734.0,0.090834]
[1768124535150,0.10583841,90753.0,90738.0,0.011035]
[1768124535944,0.09480541,90753.0,90740.0,0.011034]
[1768124536849,0.09480541,90753.0,90734.0,0.090834]
[1768124537060,0.09480541,90753.0,90739.0,0.011034]
[1768124538659,0.09480541,90753.0,90741.0,0.011034]
[1768124538859,0.09480541,90753.0,90738.0,0.011034]
[1768124539053,0.10583841,90755.0,90738.0,0.011034]
[1768124539253,0.20525982,90755.0,90739.0,0.011034]
[1768124539455,0.31408045,90817.0,90738.0,0.09499298]
[1768124539456,0.09480541,90758.0,90738.0,0.09499298]
[1768124539664,0.10583741,90762.0,90743.0,0.011034]
[1768124539963,0.10583741,90762.0,90744.0,0.0938]
[1768124540154,0.20525882,90762.0,90744.0,0.0938]
[1768124540461,0.09480541,90761.0,90744.0,0.0938]
[1768124540664,0.09480541,90759.0,90744.0,0.104834]
[1768124541264,0.10583741,90758.0,90744.0,0.0938]
[1768124541466,0.00550876,90765.0,90756.0,0.011032]
[1768124541660,0.00550876,90765.0,90757.0,0.011032]
[1768124541864,0.09480541,90769.0,90759.0,0.011032]
[1768124542069,0.09480541,90769.0,90758.0,0.084832]
[1768124542264,0.09480541,90769.0,90759.0,0.011032]
[1768124542463,0.09480541,90769.0,90758.0,0.084832]
[1768124543057,0.09942141,90778.0,90758.0,0.17982498]
[1768124543665,0.09942141,90778.0,90762.0,0.011032]
[1768124544367,0.11045141,90778.0,90762.0,0.011032]
[1768124545065,0.11045141,90778.0,90764.0,0.011031]
[1768124545066,0.09480541,90777.0,90764.0,0.011031]
[1768124545262,0.09480541,90777.0,90762.0,0.011032]
[1768124546663,0.00550755,90785.0,90758.0,0.084832]
[1768124546664,0.10583541,90775.0,90758.0,0.084832]
[1768124546868,0.011031,90770.0,90758.0,0.084832]
[1768124547261,0.10583641,90768.0,90758.0,0.084832]
[1768124547460,0.09480541,90767.0,90759.0,0.0938]
[1768124549964,0.09480541,90767.0,90751.0,0.011033]
[1768124550169,0.09480541,90759.0,90752.0,0.09376]
[1768124550462,0.09480541,90759.0,90739.0,0.23896]
[1768124550666,0.09480541,90759.0,90740.0,0.09376]